Workbook

Sheet Resumo
A1: PLANILHA DE CUSTO E FORMAÇÃO DE PREÇOS
A2: Item | B2: CBO | C2: Tipo de serviço / posto | D2: Substituição em Afastamentos | E2: Qde | F2: Meses do Contrato | G2: Remuneração (R$) | H2: Custo unitário mensal (R$) | I2: Valor unitário mensal (R$) | J2: Valor total mensal (R$) | K2: Valor unitário anual (R$) | L2: Valor total anual (R$)
A3: 1 | B3: 7825 | C3: Operador de máquinas e equipamentos | D3: Sim | E3: 1 | F3: 12 | H3: ='1.Operador'!$D$94 -> 200.74 | I3: ='1.Operador'!$D$96 ->  | J3: =I3*E3 ->  | K3: =I3*F3 ->  | L3: =J3*F3 -> 
A4: 2 | B4: 7822-25 | C4: Ajudante de operador | D4: Sim | E4: 2 | F4: 12 | H4: ='2.Ajudante'!D94 -> 200.74 | I4: ='2.Ajudante'!D96 ->  | K4: =I4*F4 ->  | L4: =J4*F4 -> 
C5: VALOR MENSAL DO CONTRATO | E5: =SUM(E3:E4) -> 3 | J5: =SUM(J3:J4) ->  | L5: =SUM(L3:L4) -> 
A6: Obs1 | B6: Os campos em VERMELHOS devem ser preenchidos aqui
A7: Obs2 | B7: E serão usados nos campos ROXOS das abas de cada POSTO

Sheet BDI
B1: PLANILHA DE CUSTOS E FORMAÇÃO DE PREÇOS PARA SERVIÇOS DEDICADOS
A2: A | B2: Dados da Proponente
A3: A1 | B3: Nome da Empresa: | C3: ORÇAMENTO REFERÊNCIAL
A4: A2 | B4: CNPJ:
A5: A3 | B5: Regime Tributário: | C5: LUCRO REAL
A6: M2 | B6: MÓDULO 2: Encargos e benefícios anuais, mensais e diários
A7: 2.2 | B7: Encargos e contribuições sociais | C7: Porcentagem (%)
A8: 2.2.3 | B8: SAT = RAT x FAP | C8: 0.03
A9: 2.2.4 | B9: Salário Educação | C9: 0.025
A10: 2.2.5 | B10: SESC - SESI | C10: 0.015
A11: 2.2.6 | B11: SENAI - SENAC | C11: 0.01
A12: 2.2.7 | B12: SEBRAE | C12: 0.006
A13: 2.2.8 | B13: INCRA | C13: 0.002
A14: M6 | B14: MÓDULO 6: Custos indiretos, tributos e lucro
A15: 6.1 | B15: Custos Indiretos | C15: 0.05
A16: 6.2 | B16: Lucro (L) | C16: 0.0789
A17: 6.3 | B17: Tributos Federais e Estaduais/Municipais (T) | C17: =SUM(C18:C20) -> 0.1425
A18: 6.3.1 | B18: COFINS | C18: 0.0165
A19: 6.3.2 | B19: PIS | C19: 0.076
A20: 6.3.3 | B20: ISSQN | C20: 0.05
A21: TM6 | B21: Total Módulo 6 (BDI) | C21: =ROUND((((1+C15)*(1+#REF!)*(1+C16))/(1-C17))-1,4) -> 
A22: OBS | B22: OBSERVAÇÕES
A23: Obs1 | B23: Os campos em VERMELHOS devem ser preenchidos aqui
A24: Obs2 | B24: E serão usados nos campos ROXOS das abas de cada POSTO
A25: Obs2 | B25: Custos indiretos, Despesas Fiscais e Lucro: valor deve ser igual ou inferior ao Orçamento de Referência
A26: Obs3 | B26: PIS e COFINS: Regime de Incidencia Acumulativa (0,65% e 3,00% - sem percentual de desconto) ou em Regime de Incidencia Não Acumulativa (1,65% e 7,60% - aplicável percentual de desconto) de acordo com a forma de apuração do lucro no IRPJ. APRESENTAR COMPROVANTES e CALCULO de aproveitamento de créditos tributários dos últimos 12 meses em caso de aplicação de "percentual de desconto".
A27: Obs4 | B27: ISSQN: apresentar documentação referente a aliquota aplicavel como:Lei, Decreto, CNAE, Certidão, Consulta fiscal, Parecer ou Alvará.
A28: Obs5 | B28: SAT = RAT x FAP: eSocial/SEFIP com Comprovante de enquadramento no CNAE + consulta FAP vigente emitida pelo sistema oficial do governo
A29: Obs6 | B29: Demais encargos: apresentar Demonstrativo da SEFIP/GFIP ou Relatório do eSocial/DCTFWeb ou Guias de Recolhimento

Sheet 1.Operador
B1: PLANILHA DE CUSTOS E FORMAÇÃO DE PREÇOS PARA SERVIÇOS DEDICADOS - OPERADOR DE MÁQUINAS
A2: A | B2: Dados da Proponente
A3: A1 | B3: Nome da Empresa: | C3: =BDI!C3 -> ORÇAMENTO REFERÊNCIAL
A4: A2 | B4: CNPJ: | C4: =BDI!C4 -> 0
A5: A3 | B5: Regime Tributário: | C5: =BDI!C5 -> LUCRO REAL
A6: B | B6: Discriminação dos serviços
A7: B1 | B7: Data da Apresentação da Proposta:
A8: B2 | B8: Ano do Acordo, Convenção ou Dissídio Coletivo:
A9: B3 | B9: Registro no MTE
A10: B4 | B10: Data base CCT
A11: B5 | B11: Fim vigência CCT
A12: B6 | B12: Munícipio/UF: | D12: João Pessoa/PB
A13: B7 | B13: Meses de execução contratual: | D13: 12
A14: C | B14: C. Mão de obra vinculada à execução contratual
A15: C1 | B15: Classificação Brasileira de Ocupações (CBO) | C15: =Resumo!B3 -> 7825
A16: C2 | B16: Categoria profissional (vinculada à execução contratual) | C16: Operador de máquinas e equipamentos
A17: C3 | B17: Carga horaria semanal | C17: 40 | D17: horas/semana
A18: C4 | B18: Jornada seg-qui (incluido 1h30 almoço) | C18: 8h | D18: 08h00-17h30
A19: C5 | B19: Jornada sex (incluido 1h30 almoço) | C19: 8h | D19: 08h00-17h30
A20: C6 | B20: Piso normativo da categoria profissional | C20: Valor
A21: C7 | B21: Salário proposto no contrato | C21: Valor
A22: C8 | B22: Profissional será subistituido em afastamentos? | D22: Sim
A23: M1 | B23: MÓDULO 1: Composição da remuneração
A24: 1 | B24: Composição da Remuneração | C24: Porcentagem (%) | D24: Valor (R$)
A25: 1.1 | B25: Salário Base | C25: 1 | D25: =D21 -> 0
A26: TM1 | B26: Total Módulo 1 | D26: =SUM(D25:D25) -> 0
A27: M2 | B27: MÓDULO 2: Encargos e benefícios anuais, mensais e diários
A28: 2.1 | B28: 13º salário, férias e adicional de férias (Conta Vinculada) | C28: Porcentagem (%) | D28: Valor (R$)
A29: 2.1.1 | B29: 13º salário | C29: =ROUND(1/12,4) -> 0.0833 | D29: =ROUNDUP($D$26/12,2) -> 0
A30: 2.1.2 | B30: Adicional de Férias (1/3 Constitucional) | C30: =ROUND(1/12/3,4) -> 0.0278 | D30: =ROUNDUP($D$26/3/12,2) -> 0
A31: 2.1.3 | B31: Incidencia dos encargos sociais sobre 13º e 1/3 | C31: =ROUND((C29+C30)*C46,4) -> 0.0409 | D31: =ROUNDUP($D$26*$C31,2) -> 0
A32: 2.2 | B32: Encargos e contribuições sociais | C32: Porcentagem (%) | D32: Valor (R$)
A33: 2.2.1 | B33: INSS | C33: 0.2 | D33: =ROUNDUP($D$26*$C33,2) -> 0
A34: 2.2.2 | B34: FGTS | C34: 0.08 | D34: =ROUNDUP($D$26*$C34,2) -> 0
A35: 2.2.3 | B35: SAT = RAT x FAP | C35: =BDI!C8 -> 0.03 | D35: 0
A36: 2.2.4 | B36: Salário Educação | C36: =BDI!C9 -> 0.025 | D36: 0
A37: 2.2.5 | B37: SESC - SESI | C37: =BDI!C10 -> 0.015 | D37: 0
A38: 2.2.6 | B38: SENAI - SENAC | C38: =BDI!C11 -> 0.01 | D38: 0
A39: 2.2.7 | B39: SEBRAE | C39: =BDI!C12 -> 0.006 | D39: 0
A40: 2.2.8 | B40: INCRA | C40: =BDI!C13 -> 0.002 | D40: 0
A41: 2.3 | B41: Benefícios mensais e diários | C41: Referência | D41: Valor (R$)
A42: 2.3.1 | B42: Vale transporte | C42: CLT/CCT | D42: =ROUND(IF(D26=0,0,IF((22*5.2*2)-(D26*0.06*22/30)>0,(22*5.2*2)-(D26*0.06*22/30),0)),2) -> 0
A43: 2.3.2 | B43: Vale alimentação (CCT C9) | C43: CCT
A44: 2.3.3 | B44: Assistência Médica e Odontológica (CCT C26) | C44: CCT
A45: SM2.1 | B45: Total Submódulo 2.1 (Conta Vinculada) | C45: =SUM(C29:C31) -> 0.152 | D45: =SUM(D29:D31) -> 0
A46: SM2.2 | B46: Total Submódulo 2.2 | C46: =SUM(C33:C40) -> 0.368 | D46: =SUM(D33:D40) -> 0
A47: SM2.3 | B47: Total Submódulo 2.3 | C47: =ROUND(D47/$D$26,4) ->  | D47: =SUM(D42:D44) -> 0
A48: TM2 | B48: Total Módulo 2 | C48: =ROUND(D48/$D$26,4) ->  | D48: =SUM(D45:D47) -> 0
A49: M3 | B49: MÓDULO 3: Provisão para rescisão e afastamentos (Conta Vinculada)
A50: 3 | B50: Elementos de Custo para Provisão | C50: Porcentagem (%) | D50: Valor (R$)
A51: 3.1.1 | B51: Aviso Prévio Indenizado (API) | C51: =ROUND(1/12*5%,4) -> 0.0042 | D51: =ROUNDUP($D$26*$C51,2) -> 0
A52: 3.1.2 | B52: Incidencia do FGTS sobre API | C52: =ROUND(1/12*5%*8%,4) -> 0.0003 | D52: 0
A53: 3.2 | B53: Aviso Prévio Trabalhado (APT) | C53: 0 | D53: 0
A54: 3.3 | B54: Multa sobre saldo FGTS | C54: =0.08*0.4*(1+2/12+(1/3*1/12)) -> 0.03822222222 | D54: 0
A55: 3.4 | B55: Licença Maternidade | C55: =ROUND((1/12+(1/3/12))*24%*22%*6/12,4) -> 0.0029 | D55: 0
A56: TM3 | B56: Total Módulo 3 (Conta Vinculada) | C56: =SUM(C51:C55) -> 0.04562222222 | D56: =SUM(D51:D55) -> 0
A57: M4 | B57: MÓDULO 4: Provisão de substituição e horas extras (Fato Gerador)
A58: 4.1 | B58: Substituição em afastamentos | C58: Porcentagem (%) | D58: =SUM(D59:D66) -> 0
A59: 4.1.1 | B59: Substituição em Férias | C59: =ROUND(1/12,4) -> 0.0833 | D59: =ROUNDUP($D$26*$C59,2) -> 0
A60: 4.1.2 | B60: Ausências por enfermidade | C60: =ROUND(5/30/12,4) -> 0.0139 | D60: =ROUNDUP($D$26*$C60,2) -> 0
A61: 4.1.3 | B61: Licença Maternidade | C61: =ROUND(24%*22%*6/12,4) -> 0.0264 | D61: 0
A62: 4.1.4 | B62: Licença Paternidade | C62: =ROUND(5/30/12*1.5%*76%,4) -> 0.0002 | D62: 0
A63: 4.1.5 | B63: Ausências legais | C63: =ROUND(2/30/12,4) -> 0.0056 | D63: 0
A64: 4.1.6 | B64: Acidente de trabalho | C64: =ROUND(15/30/12*1.78%,4) -> 0.0007 | D64: 0
A65: 4.1.7 | B65: Aviso Prévio Trabalhado (APT) | C65: 0.0194 | D65: 0
A66: 4.1.8 | B66: Outros (especificar) | C66: 0 | D66: 0
A67: SM4.1 | B67: Subtotal da provisão de substituição e horas extras | C67: =ROUND(D67/$D$26,4) ->  | D67: =D58 -> 0
A68: SM4.2 | B68: Incidencia de proporcional de férias, 1/3 e 13º sobre reposição | C68: =ROUND((2/12+(1/3/12)),4) -> 0.1944 | D68: =ROUNDUP(D67*C68,2) -> 0
A69: SM4.3 | B69: Incidência encargos sociais sobre reposição/extra + proporcional | C69: =C46 -> 0.368 | D69: =ROUNDUP((D67+D68)*C69,2) -> 0
A70: TM4 | B70: Total Módulo 3 (Fato Gerador) | C70: =ROUND(D70/$D$26,4) ->  | D70: =SUM(D67:D69) -> 0
A71: M5 | B71: MÓDULO 5: Insumos de mão de obra
A72: 5.1 | B72: Insumos continuos (Ordinário) | C72: Referência | D72: Valor (R$)
A73: 5.1.1 | B73: Uniforme | C73: Mercado e Painel de preços
A74: 5.1.2 | B74: EPI | C74: Mercado e Painel de preços
A75: 5.2 | B75: Insumos por demanda (Fato Gerador) | C75: Valor Unitário (R$) | D75: Valor Mensal (R$)
A76: 5.2.1 | B76: Materiais e equipamentos | C76: 200.74 | D76: =C76 -> 200.74
A77: SM5.1 | B77: Total Submódulo 5.1 (Ordinário) | C77: =ROUND(D77/$D$26,4) ->  | D77: =SUM(D73:D74) -> 0
A78: SM5.2 | B78: Total Submódulo 5.2 (Fato Gerador) | C78: =ROUND(D78/$D$26,4) ->  | D78: =SUM(D76:D76) -> 200.74
A79: TM5 | B79: Total Módulo 5 | D79: =SUM(D77,D78) -> 200.74
A80: M6 | B80: MÓDULO 6: Custos indiretos, tributos e lucro
A81: 6.1 | B81: Custos Indiretos | C81: STJ | D81: =BDI!#REF! -> 
A82: 6.2 | B82: Lucro (L) | C82: STJ | D82: =BDI!C16 -> 0.0789
A83: 6.3 | B83: Tributos Federais e Estaduais/Municipais (T) | C83: FISCAL | D83: =SUM(D84:D86) -> 0
A84: 6.3.1 | B84: COFINS | C84: RFB | D84: 0
A85: 6.3.2 | B85: PIS | C85: RFB | D85: 0
A86: 6.3.3 | B86: ISSQN | C86: SEFAZ | D86: 0
A87: TM6 | B87: Total Módulo 6 (BDI) | C87: =ROUND((((1+D81)*(1+#REF!)*(1+D82))/(1-D83))-1,4) ->  | D87: =ROUNDUP(D94*(C87),2) -> 
A88: VM | B88: QUADRO-RESUMO VALOR MENSAL POR EMPREGADO
A89: M1 | B89: MÓDULO 1: Composição da remuneração | D89: =D26 -> 0
A90: M2 | B90: MÓDULO 2: Encargos e benefícios anuais, mensais e diários | D90: =D48 -> 0
A91: M3 | B91: MÓDULO 3: Provisão para rescisão e afastamentos | D91: =D56 -> 0
A92: M4 | B92: MÓDULO 4: Provisão de substituição e horas extras | D92: =D70 -> 0
A93: M5 | B93: MÓDULO 5: Insumos de mão de obra | D93: =D79 -> 200.74
A94: CM | B94: CUSTO MENSAL POR EMPREGADO | D94: =SUM(D89:D93) -> 200.74
A95: M6 | B95: MÓDULO 6: Custos indiretos, tributos e lucro | D95: =D87 -> 
A96: VM | B96: VALOR MENSAL POR EMPREGADO | D96: =D94+D95 -> 
A97: VM.1 | B97: VALOR MENSAL ORDINÁRIO (TM1 + SM2.2 + SM 2.3 + SM5.1) | C97: Incluso BDI | D97: =ROUND((D89+D77+D46+D47)*(1+C87),2) -> 
A98: VM.2 | B98: RESERVA MENSAL CONTA VINCULADA (M3 + SM2.1) | C98: Incluso BDI | D98: =ROUND((D45+D56)*(1+C87),2) -> 
A99: VM.3 | B99: RESERVA MENSAL FATO GERADOR (M4 + SM5.2) | C99: Incluso BDI | D99: =ROUND((D70+D78)*(1+C87),2) -> 

Sheet 2.Ajudante
B1: PLANILHA DE CUSTOS E FORMAÇÃO DE PREÇOS PARA SERVIÇOS DEDICADOS - AJUDANTE DE OPERADOR
A2: A | B2: Dados da Proponente
A3: A1 | B3: Nome da Empresa: | C3: =BDI!C3 -> ORÇAMENTO REFERÊNCIAL
A4: A2 | B4: CNPJ: | C4: =BDI!C4 -> 0
A5: A3 | B5: Regime Tributário: | C5: =BDI!C5 -> LUCRO REAL
A6: B | B6: Discriminação dos serviços
A7: B1 | B7: Data da Apresentação da Proposta:
A8: B2 | B8: Ano do Acordo, Convenção ou Dissídio Coletivo:
A9: B3 | B9: Registro no MTE
A10: B4 | B10: Data base CCT
A11: B5 | B11: Fim vigência CCT
A12: B6 | B12: Munícipio/UF: | D12: ='1.Operador'!D12 -> João Pessoa/PB
A13: B7 | B13: Meses de execução contratual: | D13: 12
A14: C | B14: C. Mão de obra vinculada à execução contratual
A15: C1 | B15: Classificação Brasileira de Ocupações (CBO) | C15: =Resumo!B4 -> 7822-25
A16: C2 | B16: Categoria profissional (vinculada à execução contratual) | C16: =Resumo!C4 -> Ajudante de operador
A17: C3 | B17: Carga horaria semanal | C17: 40 | D17: horas/semana
A18: C4 | B18: Jornada seg-qui (incluido 1h almoço) | C18: 8h | D18: 08h00-17h00
A19: C5 | B19: Jornada sex (incluido 1h almoço) | C19: 8h | D19: 08h00-17h00
A20: C6 | B20: Piso normativo da categoria profissional | C20: Valor
A21: C7 | B21: Salário proposto no contrato | C21: Valor
A22: C8 | B22: Profissional será subistituido em afastamentos? | D22: Sim
A23: M1 | B23: MÓDULO 1: Composição da remuneração
A24: 1 | B24: Composição da Remuneração | C24: Porcentagem (%) | D24: Valor (R$)
A25: 1.1 | B25: Salário Base | C25: 1 | D25: =D21 -> 0
A26: TM1 | B26: Total Módulo 1 | D26: =SUM(D25:D25) -> 0
A27: M2 | B27: MÓDULO 2: Encargos e benefícios anuais, mensais e diários
A28: 2.1 | B28: 13º salário, férias e adicional de férias (Conta Vinculada) | C28: Porcentagem (%) | D28: Valor (R$)
A29: 2.1.1 | B29: 13º salário | C29: =ROUND(1/12,4) -> 0.0833 | D29: =ROUNDUP($D$26/12,2) -> 0
A30: 2.1.2 | B30: Adicional de Férias (1/3 Constitucional) | C30: =ROUND(1/12/3,4) -> 0.0278 | D30: =ROUNDUP($D$26/3/12,2) -> 0
A31: 2.1.3 | B31: Incidencia dos encargos sociais sobre 13º e 1/3 | C31: =ROUND((C29+C30)*C46,4) -> 0.0409 | D31: =ROUNDUP($D$26*$C31,2) -> 0
A32: 2.2 | B32: Encargos e contribuições sociais | C32: Porcentagem (%) | D32: Valor (R$)
A33: 2.2.1 | B33: INSS | C33: 0.2 | D33: =ROUNDUP($D$26*$C33,2) -> 0
A34: 2.2.2 | B34: FGTS | C34: 0.08 | D34: =ROUNDUP($D$26*$C34,2) -> 0
A35: 2.2.3 | B35: SAT = RAT x FAP | C35: =BDI!C8 -> 0.03 | D35: 0
A36: 2.2.4 | B36: Salário Educação | C36: =BDI!C9 -> 0.025 | D36: 0
A37: 2.2.5 | B37: SESC - SESI | C37: =BDI!C10 -> 0.015 | D37: 0
A38: 2.2.6 | B38: SENAI - SENAC | C38: =BDI!C11 -> 0.01 | D38: 0
A39: 2.2.7 | B39: SEBRAE | C39: =BDI!C12 -> 0.006 | D39: 0
A40: 2.2.8 | B40: INCRA | C40: =BDI!C13 -> 0.002 | D40: 0
A41: 2.3 | B41: Benefícios mensais e diários | C41: Referência | D41: Valor (R$)
A42: 2.3.1 | B42: Vale transporte | C42: CLT/CCT | D42: =ROUND(IF(D26=0,0,IF((22*4.3*2)-(D26*0.06*22/30)>0,(22*4.3*2)-(D26*0.06*22/30),0)),2) -> 0
A43: 2.3.2 | B43: Vale alimentação (CCT C9) | C43: CCT
A44: 2.3.3 | B44: Assistência Médica e Odontológica (CCT C26) | C44: CCT
A45: SM2.1 | B45: Total Submódulo 2.1 (Conta Vinculada) | C45: =SUM(C29:C31) -> 0.152 | D45: =SUM(D29:D31) -> 0
A46: SM2.2 | B46: Total Submódulo 2.2 | C46: =SUM(C33:C40) -> 0.368 | D46: =SUM(D33:D40) -> 0
A47: SM2.3 | B47: Total Submódulo 2.3 | C47: =ROUND(D47/$D$26,4) ->  | D47: =SUM(D42:D44) -> 0
A48: TM2 | B48: Total Módulo 2 | C48: =ROUND(D48/$D$26,4) ->  | D48: =SUM(D45:D47) -> 0
A49: M3 | B49: MÓDULO 3: Provisão para rescisão e afastamentos (Conta Vinculada)
A50: 3 | B50: Elementos de Custo para Provisão | C50: Porcentagem (%) | D50: Valor (R$)
A51: 3.1.1 | B51: Aviso Prévio Indenizado (API) | C51: =ROUND(1/12*5%,4) -> 0.0042 | D51: =ROUNDUP($D$26*$C51,2) -> 0
A52: 3.1.2 | B52: Incidencia do FGTS sobre API | C52: =ROUND(1/12*5%*8%,4) -> 0.0003 | D52: 0
A53: 3.2 | B53: Aviso Prévio Trabalhado (APT) | C53: 0 | D53: 0
A54: 3.3 | B54: Multa sobre saldo FGTS | C54: =0.08*0.4*(1+2/12+(1/3*1/12)) -> 0.03822222222 | D54: 0
A55: 3.4 | B55: Licença Maternidade | C55: =ROUND((1/12+(1/3/12))*24%*22%*6/12,4) -> 0.0029 | D55: 0
A56: TM3 | B56: Total Módulo 3 (Conta Vinculada) | C56: =SUM(C51:C55) -> 0.04562222222 | D56: =SUM(D51:D55) -> 0
A57: M4 | B57: MÓDULO 4: Provisão de substituição e horas extras (Fato Gerador)
A58: 4.1 | B58: Substituição em afastamentos | C58: Porcentagem (%) | D58: =SUM(D59:D66) -> 0
A59: 4.1.1 | B59: Substituição em Férias | C59: =ROUND(1/12,4) -> 0.0833 | D59: =ROUNDUP($D$26*$C59,2) -> 0
A60: 4.1.2 | B60: Ausências por enfermidade | C60: =ROUND(5/30/12,4) -> 0.0139 | D60: =ROUNDUP($D$26*$C60,2) -> 0
A61: 4.1.3 | B61: Licença Maternidade | C61: =ROUND(24%*22%*6/12,4) -> 0.0264 | D61: 0
A62: 4.1.4 | B62: Licença Paternidade | C62: =ROUND(5/30/12*1.5%*76%,4) -> 0.0002 | D62: 0
A63: 4.1.5 | B63: Ausências legais | C63: =ROUND(2/30/12,4) -> 0.0056 | D63: 0
A64: 4.1.6 | B64: Acidente de trabalho | C64: =ROUND(15/30/12*1.78%,4) -> 0.0007 | D64: 0
A65: 4.1.7 | B65: Aviso Prévio Trabalhado (APT) | C65: =ROUND(7/30/12,4) -> 0.0194 | D65: 0
A66: 4.1.8 | B66: Outros (especificar) | C66: 0 | D66: 0
A67: SM4.1 | B67: Subtotal da provisão de substituição e horas extras | C67: =ROUND(D67/$D$26,4) ->  | D67: =D58 -> 0
A68: SM4.2 | B68: Incidencia de proporcional de férias, 1/3 e 13º sobre reposição | C68: =ROUND((2/12+(1/3/12)),4) -> 0.1944 | D68: =ROUNDUP(D67*C68,2) -> 0
A69: SM4.3 | B69: Incidência encargos sociais sobre reposição/extra + proporcional | C69: =C46 -> 0.368 | D69: =ROUNDUP((D67+D68)*C69,2) -> 0
A70: TM4 | B70: Total Módulo 3 (Fato Gerador) | C70: =ROUND(D70/$D$26,4) ->  | D70: =SUM(D67:D69) -> 0
A71: M5 | B71: MÓDULO 5: Insumos de mão de obra
A72: 5.1 | B72: Insumos continuos (Ordinário) | C72: Referência | D72: Valor (R$)
A73: 5.1.1 | B73: Uniforme | C73: Mercado e Painel de preços | D73: ='1.Operador'!D73 -> 0
A74: 5.1.2 | B74: EPI | C74: Mercado e Painel de preços
A75: 5.2 | B75: Insumos por demanda (Fato Gerador) | C75: Valor Unitário (R$) | D75: Valor Mensal (R$)
A76: 5.2.1 | B76: Alugueis e materiais | C76: ='1.Operador'!C76 -> 200.74 | D76: ='1.Operador'!D76 -> 200.74
A77: SM5.1 | B77: Total Submódulo 5.1 (Ordinário) | C77: =ROUND(D77/$D$26,4) ->  | D77: =SUM(D73:D74) -> 0
A78: SM5.2 | B78: Total Submódulo 5.2 (Fato Gerador) | C78: =ROUND(D78/$D$26,4) ->  | D78: =SUM(D76:D76) -> 200.74
A79: TM5 | B79: Total Módulo 5 | C79: =ROUND(D79/$D$26,4) ->  | D79: =SUM(D77,D78) -> 200.74
A80: M6 | B80: MÓDULO 6: Custos indiretos, tributos e lucro
A81: 6.1 | B81: Custos Indiretos | C81: STJ | D81: =BDI!#REF! -> 
A82: 6.2 | B82: Lucro (L) | C82: STJ | D82: =BDI!C16 -> 0.0789
A83: 6.3 | B83: Tributos Federais e Estaduais/Municipais (T) | C83: FISCAL | D83: =SUM(D84:D86) -> 0
A84: 6.3.1 | B84: COFINS | C84: RFB | D84: 0
A85: 6.3.2 | B85: PIS | C85: RFB | D85: 0
A86: 6.3.3 | B86: ISSQN | C86: SEFAZ | D86: 0
A87: TM6 | B87: Total Módulo 6 (BDI) | C87: =ROUND((((1+D81)*(1+#REF!)*(1+D82))/(1-D83))-1,4) ->  | D87: =ROUNDUP(D94*(C87),2) -> 
A88: VM | B88: QUADRO-RESUMO VALOR MENSAL POR EMPREGADO
A89: M1 | B89: MÓDULO 1: Composição da remuneração | D89: =D26 -> 0
A90: M2 | B90: MÓDULO 2: Encargos e benefícios anuais, mensais e diários | D90: =D48 -> 0
A91: M3 | B91: MÓDULO 3: Provisão para rescisão e afastamentos | D91: =D56 -> 0
A92: M4 | B92: MÓDULO 4: Provisão de substituição e horas extras | D92: =D70 -> 0
A93: M5 | B93: MÓDULO 5: Insumos de mão de obra | D93: =D79 -> 200.74
A94: CM | B94: CUSTO MENSAL POR EMPREGADO | D94: =SUM(D89:D93) -> 200.74
A95: M6 | B95: MÓDULO 6: Custos indiretos, tributos e lucro | D95: =D87 -> 
A96: VM | B96: VALOR MENSAL POR EMPREGADO | D96: =D94+D95 -> 
A97: VM.1 | B97: VALOR MENSAL ORDINÁRIO (TM1 + SM2.2 + SM 2.3 + SM5.1) | C97: Incluso BDI | D97: =ROUND((D89+D77+D46+D47)*(1+C87),2) -> 
A98: VM.2 | B98: RESERVA MENSAL CONTA VINCULADA (M3 + SM2.1) | C98: Incluso BDI | D98: =ROUND((D45+D56)*(1+C87),2) -> 
A99: VM.3 | B99: RESERVA MENSAL FATO GERADOR (M4 + SM5.2) | C99: Incluso BDI | D99: =ROUND((D70+D78)*(1+C87),2) -> 

Sheet LEIAME
C1: ORIENTAÇÕES E JUSTIFICATIVAS
A2: A | B2: Fórmulas | C2: Instruções, Justificativas e Fundamentos
A3: A1 | B3: Preencher coluna C
A4: A2 | B4: Preencher coluna C
A5: A3 | B5: Preencher coluna D
A6: B | B6: Fórmulas | C6: Instruções, Justificativas e Fundamentos
A7: B1 | B7: Preencher coluna D
A8: B2 | B8: Preencher coluna C e D
A9: B3 | B9: Preencher coluna D
A10: B4 | B10: Preencher coluna D
A11: B5 | B11: Preencher coluna D
A12: B6 | B12: Dados fixos
A13: B7 | B13: Dados fixos
A14: B8 | B14: Dados fixos
A15: C | B15: Fórmulas | C15: Instruções, Justificativas e Fundamentos
A16: C1 | B16: Dados fixos
A17: C2 | B17: Dados fixos | C17: https://www.mtecbo.gov.br/cbosite/pages/home.jsf
A18: C3 | B18: Dados fixos
A19: C4 | B19: Dados fixos
A20: C5 | B20: Dados fixos | C20: Jornada de trabalho de segunda a quinta, incluindo horario de almoço
A21: C6 | B21: Dados fixos | C21: Jornada de trabalho de sexta, incluindo horario de almoço
A22: C7 | B22: Preencher coluna D | C22: Valor do CCT Base
A23: C8 | B23: Preencher coluna D | C23: Valor proposto
A24: C9 | B24: Dados fixos | C24: Caso seja necessário substituição em afastamentos, dimensionar custos no Modulo 4. Recomenda-se substituição apenas em funções operacionais essenciais como: limpeza, copeiragem, vigilância, motorista, recepcionista, almoxarife e secretária. Cargos técnicos ou administrativos que exijam trabalhos intelectuais, não é sugerido a substituição.
A25: M1 | B25: Fórmulas | C25: Instruções, Justificativas e Fundamentos
A26: 1 | B26: Porcentagens FIXAS | C26: As % não podem ser modificadas na proposta, para manter a isonomia da licitação, pois trata-se de encargos obrigatórios.
A27: 1.1 | B27: Máximo = Codevasf / Mínimo = CCT | C27: É a contraprestação devida e paga diretamente ao trabalhador. art. 428, § 2o, da CLT, com redação dada pela Lei no 10.097/2000. Informativo de Licitações e Contratos nº 360 do TCU
A28: 1.2 | B28: FIXO = 30% ou 0% | C28: Súmula no 191 do TST
A29: 1.3 | B29: FIXO = 40%, 20% ou 10% | C29: art. 192 da CLT, Súmula 228 e 448 do TST
A30: 1.4 | B30: FIXO = conforme dimensionamento | C30: art. 73 da CLT. Deverá ser realizado o calculo do adicional noturno, considerando o adicional de 20% sobre a escala de 22h à 5hs, e hora noturna de 52,5 min.
A31: 1.5 | B31: Especificar
A32: TM1 | B32: Soma
A33: M2 | B33: Fórmulas | C33: Instruções, Justificativas e Fundamentos
A34: 2.1 | B34: Porcentagens FIXAS | C34: As % não podem ser modificadas na proposta, para manter a isonomia da licitação, pois trata-se de encargos obrigatórios.
A35: 2.1.1 | B35: FIXO = 1/12 | C35: CF/88 art 7 Inciso VIII; Leis 4.090/1962 e 4.749/1962; Decreto 57.155/1965; Súmulas nº 14 e 157 – TST; Acórdão TCU 1.753/2008
A36: 2.1.2 | B36: FIXO = 1/12/3 | C36: Art. 7º, XVII, CF/88; Art. 129 a 153 da CLT; Súmulas 14, 100, 171, 261; art. 214 § 4º do Decreto nº 3.048/99, Art. 28 § 9º, 245 alínea “d” da Lei nº 8.212/91, art. 134 e 137 da CLT, Súmula nº 7 – TST, Súmula Nº 81 – TST
A37: 2.1.3 | B37: FIXO = SM2.2 * (1/12+1/12/3) | C37: Art. 7º, VIII e XVII, CF/88
A38: 2.2 | B38: Porcentagens FIXAS ou VARIÁVEIS | C38: Apenas celulas em vermelho podem ser modificadas conforme realidade tributária da proponente. As demais são porcentagens FIXAS pois trata-se de encargos obrigatórios.
A39: 2.2.1 | B39: FIXO = 20% | C39: Contribuição Previdenciária sobre a Folha de Pagamentos (CPFP); Art. 22, Inciso I, da Lei nº 8.212/91; Lei 13.161/2015, IN RFB nº 1.436/2013, Acórdão TCU 93/2015, 480/2015, 6013/2015
A40: 2.2.2 | B40: FIXO = 8% | C40: Fundo de Garantia do Tempo de Serviço (FGTS); art. 15 da Lei 8.036/90
A41: 2.2.3 | B41: RAT = 1%,2%,3% e FAP = 0,5 à 2,0 | C41: Apresentar extrato do eSocial com indíce; Seguro de Acidente de Trabalho (SAT ou GILRAT); Anexo V do Regulamento da Previdência Social – RPS (Decreto n. 3.048/1999), Instrução Normativa RFB n. 971/2009. Súmula 351 do STJ. Acórdão TCU nº 2831/2015
A42: 2.2.4 | B42: Váriavel do FPAS = 2,5% à 0% | C42: Considerado FPAS 515 - Comércio e Serviços, em caso de alteração apresentar extrato do eSocial com FPAS; Contribuições Sociais; art. 3º da Lei nº. 11.457/2007; IN RFB 971/2009 (Anexo II)
A43: 2.2.5 | B43: Váriavel do FPAS = 1,5% à 0% | C43: Considerado FPAS 515 - Comércio e Serviços, em caso de alteração apresentar extrato do eSocial com FPAS; Contribuições Sociais; art. 3º da Lei nº. 11.457/2007; IN RFB 971/2009 (Anexo II)
A44: 2.2.6 | B44: Váriavel do FPAS = 1,0% à 0% | C44: Considerado FPAS 515 - Comércio e Serviços, em caso de alteração apresentar extrato do eSocial com FPAS; Contribuições Sociais; art. 3º da Lei nº. 11.457/2007; IN RFB 971/2009 (Anexo II)
A45: 2.2.7 | B45: Váriavel do FPAS = 0,6% à 0% | C45: Considerado FPAS 515 - Comércio e Serviços, em caso de alteração apresentar extrato do eSocial com FPAS; Contribuições Sociais; art. 3º da Lei nº. 11.457/2007; IN RFB 971/2009 (Anexo II)
A46: 2.2.8 | B46: Váriavel do FPAS = 0,2% à 0% | C46: Considerado FPAS 515 - Comércio e Serviços, em caso de alteração apresentar extrato do eSocial com FPAS; Contribuições Sociais; art. 3º da Lei nº. 11.457/2007; IN RFB 971/2009 (Anexo II)
A47: 2.3 | B47: Valores VARIÁVEIS | C47: Os valores poderão ser modificados, mas não podem ser SUPERIOR a Planilha de Custos nem INFERIOR as Canvenções/Acordos Coletivos da Categoria. Vedado inclusão de PL (participação dos lucros) e benefícios não incluidos em CCTs.
A48: 2.3.1 | B48: f=(X*22)-(R*0,06*22/30) | C48: X = valor das tarifas de ida e volta; R = remuneração; Valor sempre maior que zero; Vale-transporte: Lei 7.418/1985. Decreto 95.247/1987.
A49: 2.3.2 | B49: Máximo = SICRO / Mínimo = CCT | C49: Em caso de desconto na folha de maximo de 20% do vale, o mesmo deve ser integrado a proposta. Apresentar inscrição no Programa de Alimentação do Trabalhador – PAT, Auxílio Alimentação: § 2º, art. 457 da CLT; Lei 6.321/1976.
A50: 2.3.3 | B50: Máximo = SICRO / Mínimo = CCT | C50: Benefício conforme política da empresa ou Convenção Coletiva de Trabalho (CCT). Em inexistência de cláusula o valor poderá ser zero.
A51: 2.3.4 | B51: Máximo = SICRO / Mínimo = CCT | C51: Benefício conforme política da empresa ou Convenção Coletiva de Trabalho (CCT). Em inexistência de cláusula o valor poderá ser zero.
A52: 2.3.5 | B52: Mínimo = CCT | C52: Benefício conforme política da empresa ou Convenção Coletiva de Trabalho (CCT). Em inexistência de cláusula o valor poderá ser zero.
A53: 2.3.6 | B53: Mínimo = CCT | C53: Benefício conforme política da empresa ou Convenção Coletiva de Trabalho (CCT). Em inexistência de cláusula o valor poderá ser zero.
A54: SM2.1 | B54: Soma percentual
A55: SM2.2 | B55: Soma percentual
A56: SM2.3 | B56: Soma percentual
A57: TM2 | B57: Soma percentual
A58: M3 | B58: Fórmulas | C58: Instruções, Justificativas e Fundamentos
A59: 3 | B59: Porcentagens FIXAS | C59: As % não podem ser modificadas na proposta, para manter a isonomia da licitação, pois trata-se de provisões de verbas indenizatórias obrigatórias, porém de estimativa probabilistica que podem modificar conforme andamento do contrato.
A60: 3.1.1 | B60: f=1/12*5%=0,42% | C60: Modelo STJ. 1/12 = proporção mensal (rescisão), 5% = prob de API. art. 487 § 1º da CLT; art. 7º, XXI da CF/88
A61: 3.1.2 | B61: f=1/12*5%*8%=0,03% | C61: Modelo STJ, 8% = FGTS, 5% = prob de API; art. 15, da Lei 8.036/90, Súmula nº 305 do TST
A62: 3.2 | B62: Fixo = 0% | C62: Modelo STJ Adaptado. Os valores dos 30 dias do APT estão dimensionados na folha (custo ordinário). Custos de reposição da redução de jornada de 2 horas ou 7 dias corridos deverão ser calculados no Modulo 4, incluindo encargos incidentes.
A63: 3.3 | B63: f=8%*40%*(1+2/12+[1/3*1/12]) | C63: Modelo STJ Adaptado. 8% = FGTS, 40% multa FGTS, ()=Remuneração + férias + 13 + 1/3 férias, considera-se pior cenario de 100% de demissão sem justa causa. Multa compensatória, art.18, caput § 1º da Lei nº 8.036/90; OJ-SDI1-42 – TST, Lei n. 13.932/2019 (extinção contribuição social 10%)
A64: 3.4 | B64: f=(1/12+(1/3/12))*24%*22%*6/12 | C64: Modelo STJ Adaptado. () = Provisão de férias e adicional de férias sobre periodo de maternidade, 24% = % de mulheres empregadas, 22% = % de empregadas que pediram licença maternidade, 6/12 = 6 meses de licença/ 12 meses ano. Retirou-se do M4 por se tratar de rubrica de provisão por afastamento legal e não de reposição. Art. 86 da IN RFB 971/2009, REsp 1230957/RS
A65: TM3 | B65: Soma | C65: Provisão para rescisão e custos de afastamentos (Licença Maternidade)
A66: M4 | B66: Fórmulas | C66: Instruções, Justificativas e Fundamentos
A67: 4.1 | B67: Porcentagens FIXAS | C67: As % não podem ser modificadas na proposta, para manter a isonomia da licitação, pois trata-se de provisões para substituição, porém de estimativa probabilistica que podem modificar conforme andamento do contrato.
A68: 4.1.1 | B68: f=1/12 | C68: IN MP 02/08 e 06/12; Acórdão TCU 645/2009 e 265/2010
A69: 4.1.2 | B69: f=5/30/12 | C69: Modelo STJ. 5 dias de licença por ano. IN MP 02/08 e 06/12; Acórdão TCU 645/2009 e 265/2011, Art.131 , inciso III, da CLT. Art. 476 da CLT, art. 6º, §1º, alínea "f", da Lei n. 605, de 1949, e art. 12, alínea "f", do Decreto n. 27.048, de 1949
A70: 4.1.3 | B70: f=6/12*24%*22% | C70: Modelo STJ Adaptado. O modelo STJ não considerou o custo de reposição em caso de auxilio maternidade, foi considerado as metricas estatisticas do item 5.5.4 do Manual. IN MP 02/08 e 06/12; Acórdão TCU 645/2009 e 265/2012; 7º inc. XVIII, CF, Lei 8.213/91, art. 72 e Lei 11770/2008. Lei n. 13.527/2016. Art. 86 da IN RFB 971/2009
A71: 4.1.4 | B71: f=5/30/12*1,5%*76% | C71: Modelo STJ Adaptado. 5/30/12= 5 dias de licença por ano, 1,5% = % de empregados que pediram licença, 76% = % homens empregados. IN MP 02/08 e 06/12; Acórdão TCU 645/2009 e 265/2013. Art. 82 e 473 da CLT. Acórdãos TCU nº 1.904/2007 e nº 1.753/2008 - Plenário
A72: 4.1.5 | B72: f=2/30/12 | C72: Modelo STJ Adaptado. 2/30/12 = 2 ausencias por ano. Art. 7º, inciso XIX da CF. §1º do artigo 10 do ADCT. Lei n. 13.527/2016. Acórdãos TCU nº 1.904/2007 e nº 1.753/2008 - Plenário
A73: 4.1.6 | B73: f=15/30/12*1,78% | C73: Modelo STJ Adaptado. 15/30/12 = 15 dias de ausência por ano, 1,78% = % de pedidos de licença. Art. 27 do Dec. 89312/84, Art. 131 da CLT e MP. 664/2014.
A74: 4.1.7 | B74: f=7/30/12*(10% p/ renovação) | C74: Modelo STJ Adaptado. 7/30/12 = 7 dias de aviso no ano, 10% = na renovação do contrato o APT adicional é 3 dias por ano (3/30=10%). Custo de reposição do profissional em aviso prévio. Retirou-se do M3 por se tratar de rubrica de provisão de reposição e não de rescisão O percentual deve ser reduzidoem caso de renovação. Acórdão 1186/2017
A75: 4.1.8 | B75: Especificar | C75: Demais afastamentos deverão ser justificados e estatisticamente dimensionados.
A76: 4.2 | B76: Valores FIXOS | C76: Os valores e formulas não poderão ser modificados na proposta, para manter a isonomia da licitação, pois trata-se de provisões parahoras extras, porém de estimativa probabilistica que podem modificar conforme execução do contrato.
A77: 4.2.1 | B77: FIXO = 50% x horas adicionais | C77: Recomenda-se dimensionamento de horas extras mensais, com calculo do % no mês e devidas justificativas. art. 59 da CLT, art. 7º inciso XVI da CF, Súmula nº 423 do TST
A78: 4.2.2 | B78: FIXO = 100% x horas adicionais | C78: Recomenda-se dimensionamento de horas extras mensais, com calculo do % no mês e devidas justificativas. art. 59 da CLT, art. 7º inciso XVI da CF, Súmula nº 423 do TST
A79: SM4.1 | B79: Soma (4.1 a 4.8) | C79: Valor do profissional de substituição (sem encargos e proporcionais)
A80: SM4.2 | B80: f=(2/12+(1/3/12))* SM4.1 | C80: Proporcional de férias, 1/3 e 13º sobre reposição
A81: SM4.3 | B81: f=SM2.2*(SM4.1+SM4.2) | C81: Incidência das encargos sociais sobre reposição + proporcional
A82: TM4 | B82: Soma SM4.1 a SM4.3 | C82: Provisão mensal para reposição ausente
A83: M5 | B83: Fórmulas | C83: Instruções, Justificativas e Fundamentos
A84: 5.1 | B84: Valores VARIÁVEIS | C84: Os valores poderão ser modificados na proposta. A proponente deverá apresentar o seu valor mensal dos custos. A análise da proposta deverá verificar se os valores são exequiveis.
A85: 5.1.1 | B85: Dimensionar | C85: Sugere-se o dimensionamento conforme metodologia Sinapi vide aba EPI e FER, para cargos manutenção sugere-se utilizar o caderno SINAPI (Calculos e Parâmetros).
A86: 5.1.2 | B86: Dimensionar | C86: Sugere-se o dimensionamento conforme metodologia Sinapi vide aba EPI e FER, para cargos manutenção sugere-se utilizar o caderno SINAPI (Calculos e Parâmetros).
A87: 5.1.3 | B87: Dimensionar | C87: Sugere-se o dimensionamento conforme metodologia Sinapi vide aba EPI e FER, para cargos manutenção sugere-se utilizar o caderno SINAPI (Calculos e Parâmetros).
A88: 5.2 | B88: Valores VARIÁVEIS | C88: Os valores poderão ser modificados na proposta. A proponente deverá apresentar o seu valor mensal dos custos. A análise da proposta deverá verificar se os valores são exequiveis.
A89: 5.2.1 | B89: VM = VU x qde | C89: Sugere-se utilizar o valor da diária da Codevasf, e estimar a quantidade necessária de diárias por mês. Inserir quantitativo na formula
A90: 5.2.2 | B90: VM = VU x qde | C90: Sugere-se cotar VU e dimensionar a quantidade mensal. Inserir quantitativo na formula
A91: 5.2.3 | B91: VM = VU x qde | C91: Sugere-se cotar VU e dimensionar a quantidade mensal. Inserir quantitativo na formula
A92: SM5.1 | B92: Soma
A93: SM5.2 | B93: Soma
A94: TM5 | B94: Soma
A95: M6 | B95: Fórmulas | C95: Instruções, Justificativas e Fundamentos
A96: 6.1 | B96: Percentagens VARIÁVEIS | C96: As % poderão ser modificados na proposta, dentro da limitação da legislação tributária.
A97: 6.1.1 | B97: Variável | C97: Considerado SINAPI. A proposta deve apresentar aliquota conforme realidade comercial da empresa, igual ou inferior a Planilha de Custos.
A98: 6.1.2 | B98: Variável | C98: Considerado SINAPI. A proposta deve apresentar aliquota conforme realidade comercial da empresa, igual ou inferior a Planilha de Custos.
A99: 6.1.3 | B99: Variável | C99: Considerado SINAPI. A proposta deve apresentar aliquota conforme realidade comercial da empresa, igual ou inferior a Planilha de Custos.
A100: 6.2 | B100: Variável | C100: Considerado SINAPI. A proposta deve apresentar aliquota conforme realidade comercial da empresa, igual ou inferior a Planilha de Custos.
A101: 6.2 | B101: Variável | C101: Considerado média do caderno STJ. A proposta deve apresentar aliquota conforme realidade comercial da empresa, igual ou inferior a Planilha de Custos.
A102: 6.3 | B102: Soma percentual | C102: Somatório dos tributos. Súmula TCU nº 254/2010 é vetado inclusão de IRPJ e a CSLL
A103: 6.3.1 | B103: Variável = 0,65% a 1,65% | C103: Considerado Tributação sob Lucro Real (regime não cumulativo). A proposta deve apresenta aliquota conforme realidade tributária (Lucro Real ou Presumido), deve-se apresentar os comprovantes de aproveitamento de créditos tributários dos últimos 12 meses em caso de aplicação de "percentual de desconto" (regime cumulativo).
A104: 6.3.2 | B104: Variável = 3,0% a 7,6% | C104: Considerado Tributação sob Lucro Real (regime não cumulativo). A proposta deve apresenta aliquota conforme realidade tributária (Lucro Real ou Presumido), deve-se apresentar os comprovantes de aproveitamento de créditos tributários dos últimos 12 meses em caso de aplicação de "percentual de desconto" (regime cumulativo).
A105: 6.3.3 | B105: Variável = 2% a 5% | C105: Considerado no dimensionamento aliquota máxima. Na proposta deve ser inserido a aliquota conforme realidade tributária e devida comprovação.
A106: TM6 | B106: BDI=((1+AC+SG+RI)x(1+DF)x(1xL))/(1-T)-1 | C106: TM6 = BDI x (TM1+TM2+TM3+TM4+TM5)
A107: VM | B107: Fórmulas | C107: Instruções, Justificativas e Fundamentos
A108: M1 | B108: Importado M1
A109: M2 | B109: Importado M2
A110: M3 | B110: Importado M3
A111: M4 | B111: Importado M4
A112: M5 | B112: Importado M5
A113: CM | B113: Soma (TM1 a TM5) | C113: Custo mensal por empregado excluido BDI
A114: M6 | B114: Importado M6
A115: VM | B115: Soma (TM1 a TM6) | C115: Valor mensal por empregado incluido BDI
A116: VM.1 | B116: (TM1 + SM2.2 + SM 2.3 + SM5.1) * (1+BDI) | C116: Valor mensal ordinário da folha de pagamento, valor inclui BDI
A117: VM.2 | B117: (TM3 + SM2.1) * (1+BDI) | C117: Valor mensal a ser aportado na conta vinculada para suprimento de férias e custos de rescisão, valor inclui BDI
A118: VM.3 | B118: (TM4 + SM5.2) * (1+BDI) | C118: Valor mensal a ser reservado como empenho para pagamento de mão-de-obra substituta (se for exigido) e insumos por demanda, valor inclui BDI
